bitfinex/quotes_ETHUSD_20241109
["timestamp","ask_amount","ask_price","bid_price","bid_amount"]
[1731156956481,0.68180622,3034.9,3034.5,0.7828]
[1731156956657,0.68180622,3034.8,3034.5,0.7828]
[1731156956980,4.27077388,3034.9,3034.5,0.7828]
[1731156957577,0.68180622,3034.8,3034.5,0.7828]
[1731156959553,0.68180622,3034.7,3034.5,0.7828]
[1731156960171,1.32967065,3034.8,3034.5,0.7828]
[1731156960689,0.68180622,3034.7,3034.5,0.7828]
[1731156960982,1.32967065,3034.8,3034.5,0.7828]
[1731156961183,0.68180622,3034.7,3034.5,0.7828]
[1731156961394,0.68180622,3034.8,3034.5,0.7828]
[1731156961973,0.68180622,3034.7,3034.5,0.7828]
[1731156962183,0.68180622,3034.8,3034.5,0.7828]
[1731156962556,0.68180622,3034.7,3034.5,0.7828]
[1731156962759,0.68180622,3034.8,3034.5,0.7828]
[1731156963697,0.68180622,3034.7,3034.5,0.7828]
[1731156969804,0.68180622,3034.6,3034.5,0.7828]
[1731156970001,0.68180622,3034.7,3034.5,0.7828]
[1731156970699,0.98842153,3034.6,3034.5,0.7828]
[1731156971406,0.98842153,3034.6,3034.2,0.75879607]
[1731156971592,0.30661531,3034.5,3034.2,0.75879607]
[1731156971917,0.68180622,3034.6,3034.2,0.75879607]
[1731156974187,0.68180622,3034.6,3034.2,0.754]
[1731156974588,0.68180622,3034.6,3034.2,0.75879607]
[1731156977003,0.68180622,3034.6,3034.2,0.754]
[1731156978311,0.68180622,3034.5,3034.2,0.754]
[1731156979009,0.68180622,3034.5,3034.2,0.75879607]
[1731156979324,0.68180622,3034.5,3034.2,0.754]
[1731156979888,0.68180622,3034.5,3034.2,0.75879607]
[1731156980090,0.68180622,3034.5,3034.2,0.754]
[1731156980412,0.68180622,3034.5,3034.2,0.75879607]
[1731156981199,0.68180622,3034.5,3034.2,0.754]
[1731156981503,0.68180622,3034.5,3034.2,0.75879607]
[1731156982602,0.68180622,3034.4,3034.2,0.75879607]
[1731156983298,0.68180622,3034.4,3034.2,0.754]
[1731156983503,0.68180622,3034.4,3034.2,0.75879607]
[1731156984726,0.68180622,3034.3,3034.1,0.33998996]
[1731156985033,0.68180622,3034.3,3033.9,0.7856]
[1731156990664,0.68180622,3034.4,3033.9,0.7856]
[1731156991150,0.68180622,3034.3,3033.9,0.7856]
[1731156991668,0.68180622,3034.6,3034.2,0.79039607]
[1731156992046,0.68180622,3034.6,3034.3,0.10661073]
[1731156992352,0.68180622,3034.6,3034.2,0.79039607]
[1731156992530,0.68180622,3034.6,3034.3,0.10661073]
[1731156992730,0.68180622,3034.5,3034.3,0.10661073]
[1731156992925,0.68180622,3034.5,3034.2,0.79039607]
[1731156993260,0.68180622,3034.6,3034.2,0.79039607]
[1731156994382,0.68180622,3034.5,3034.2,0.79039607]
[1731156996252,0.68180622,3034.5,3034.2,0.00479607]
[1731156996440,0.68180622,3034.4,3034.2,0.00479607]
[1731156996638,0.68180622,3034.4,3034.1,0.00479607]
[1731156996963,0.68180622,3034.3,3034.1,0.00479607]
[1731156999165,0.68180622,3034.3,3033.9,0.00479607]
[1731156999529,0.68180622,3034.3,3034.1,0.00479607]
[1731157000730,0.68180622,3034.3,3033.9,0.00479607]
[1731157001071,0.68180622,3034.2,3033.9,0.00479607]
[1731157001241,0.68180622,3034.3,3033.9,0.00479607]
[1731157002362,0.68180622,3034.2,3033.9,0.00479607]
[1731157003176,0.68180622,3034.1,3033.8,0.00479607]
[1731157006061,1.47240622,3034.0,3033.6,0.3443125]
[1731157006237,1.47240622,3034.0,3033.6,0.00479607]
[1731157006238,4.47240622,3034.0,3033.6,0.00479607]
[1731157006434,0.68180622,3033.9,3033.6,0.00479607]
[1731157007132,4.47240622,3034.0,3033.4,0.00479607]
[1731157007366,4.47240622,3034.0,3033.6,0.00479607]
[1731157007579,1.47240622,3034.0,3033.6,0.00479607]
[1731157008873,1.47240622,3034.0,3033.3,0.7539]
[1731157008874,2.06896293,3034.0,3033.3,0.7539]
[1731157009473,0.7906,3033.9,3033.3,0.00479607]
[1731157009633,0.68180622,3033.8,3033.3,0.00479607]
[1731157009832,0.68180622,3033.7,3033.3,0.00479607]
[1731157010231,0.68180622,3033.8,3033.3,0.00479607]
[1731157010875,0.68180622,3033.9,3033.4,0.7539]
[1731157011668,1.27836293,3034.0,3033.4,0.7539]
[1731157011842,0.68180622,3034.0,3033.5,0.00479607]
[1731157013035,1.47240622,3034.1,3033.5,0.00479607]
[1731157013574,0.68180622,3034.0,3033.5,0.00479607]
[1731157013774,1.47240622,3034.1,3033.5,0.00479607]
[1731157014064,0.68180622,3034.0,3033.5,0.00479607]
[1731157014271,0.93131778,3034.0,3033.5,0.00479607]
[1731157014851,0.93131778,3034.0,3033.0,0.1399195]
[1731157014852,0.7906,3033.9,3033.3,0.00479607]
[1731157015480,1.47240622,3033.9,3033.3,0.00479607]
[1731157016168,0.7906,3033.9,3033.4,0.7539]
[1731157020795,1.43017022,3033.9,3033.4,0.7539]
[1731157020955,1.43017022,3033.9,3033.3,0.00479607]
[1731157024268,1.43017022,3033.9,3033.4,0.00479607]
[1731157026051,1.43017022,3033.9,3033.2,0.7539]
[1731157026256,1.43017022,3033.9,3033.4,0.00479607]
[1731157026485,0.5361488,3033.8,3033.4,0.00479607]
[1731157026849,0.5361488,3033.8,3033.2,0.7539]
[1731157027255,0.5361488,3033.8,3033.3,0.00479607]
[1731157027256,1.21795502,3033.8,3033.3,0.00479607]
[1731157027962,4.51510622,3033.7,3033.1,0.00479607]
[1731157028174,5.11823266,3033.7,3033.0,0.95781557]
[1731157028371,0.68180622,3033.6,3033.0,0.95781557]
[1731157028569,5.11823266,3033.7,3033.0,0.95781557]
[1731157028782,0.68180622,3033.6,3033.0,0.95781557]
[1731157028993,5.11823266,3033.7,3033.1,0.00479607]
[1731157029177,0.66770908,3033.6,3033.0,0.9530195]
[1731157029365,1.51510622,3033.5,3033.0,0.1399195]
[1731157030384,0.8333,3033.5,3033.0,0.1399195]
[1731157032217,0.68180622,3034.0,3033.1,0.81789607]
[1731157032416,0.68180622,3034.0,3033.0,0.1399195]
[1731157032417,0.30611048,3033.9,3033.4,0.8131]
[1731157032616,0.30611048,3033.8,3033.4,0.8131]
[1731157032918,2.16618134,3034.1,3033.4,0.8131]
[1731157033257,0.64349509,3034.0,3033.4,0.8131]
[1731157033421,0.30615273,3033.9,3033.4,0.8131]
[1731157033573,0.30615273,3033.8,3033.4,0.8131]
[1731157033913,4.01914858,3034.0,3033.4,0.8131]
[1731157034118,0.30620063,3033.9,3033.4,0.8131]
[1731157034322,0.30620063,3033.8,3033.4,0.8131]
[1731157034495,0.30620063,3033.7,3033.4,0.8131]
[1731157034689,4.01914858,3034.0,3033.4,0.8131]
[1731157034889,0.55035237,3033.9,3033.4,0.8131]
[1731157035207,3.33734236,3034.0,3033.4,0.8131]
[1731157035408,4.01914858,3034.0,3033.4,0.8131]
[1731157035792,3.33734236,3034.0,3033.4,0.8131]
[1731157035990,1.33288134,3034.1,3033.4,0.8131]
[1731157036525,0.65107512,3034.1,3033.5,0.00479607]
[1731157037019,0.68180622,3034.2,3033.5,0.00479607]
[1731157037191,0.68180622,3034.4,3033.8,0.8131]
[1731157037397,0.68180622,3034.5,3033.9,0.00479607]
[1731157037581,0.99997232,3034.5,3033.8,0.8131]
[1731157037786,0.99997232,3034.5,3033.9,0.00479607]
[1731157037986,0.99997232,3034.5,3034.0,0.8131]
[1731157039198,0.68180622,3034.4,3034.0,0.8131]
[1731157040027,0.99997232,3034.5,3034.0,0.8131]
[1731157040329,0.68180622,3034.4,3034.0,0.8131]
[1731157041394,0.99997232,3034.5,3034.0,0.8131]
[1731157041818,0.50226817,3034.4,3033.8,0.8131]
[1731157042027,0.50226817,3034.4,3033.6,0.8131]
[1731157042028,0.8333,3034.3,3033.6,0.8131]
[1731157042201,3.68180622,3034.2,3033.6,0.8131]
[1731157042405,3.68180622,3034.2,3033.5,0.00479607]
[1731157042723,3.68180622,3034.2,3033.4,0.8131]
[1731157042724,0.8333,3033.9,3033.4,0.8131]
[1731157043132,0.45151062,3033.8,3033.4,0.8131]
[1731157043493,0.45151062,3033.8,3033.1,0.81789607]
[1731157043694,1.13331684,3033.8,3033.1,0.8131]
[1731157043938,4.13331684,3033.8,3033.1,0.81789607]
[1731157044386,0.68180622,3033.7,3033.1,0.81789607]
[1731157047733,0.68180622,3033.7,3033.1,0.8131]
[1731157047921,0.68180622,3033.7,3033.1,0.81789607]
[1731157048290,0.68180622,3033.7,3033.2,0.09378683]
[1731157048440,0.68180622,3033.7,3032.9,0.07676771]
[1731157048592,0.51560262,3033.6,3032.9,0.07676771]
[1731157048793,0.68180622,3033.7,3032.8,0.55]
[1731157049436,0.68180622,3033.7,3032.9,0.0659368]
[1731157049599,0.68180622,3033.7,3032.7,0.55]
[1731157051035,0.68180622,3033.6,3032.7,0.55]
[1731157051329,0.68180622,3033.6,3032.8,0.06593685]
[1731157051630,0.68180622,3033.7,3032.8,0.06593685]
[1731157053814,0.68180622,3033.8,3032.8,0.06593685]
[1731157054213,0.68180622,3033.7,3032.8,0.06593685]
[1731157055213,0.68180622,3033.7,3032.7,0.55]
[1731157055515,0.68180622,3033.7,3032.8,0.06593691]
[1731157056248,0.68180622,3033.8,3032.8,0.06593691]
[1731157056437,0.68180622,3033.7,3032.8,0.06593691]
[1731157056639,0.68180622,3033.7,3032.9,0.55]
[1731157056820,0.68180622,3033.7,3032.8,0.06593691]
[1731157056821,0.68180622,3033.9,3033.1,0.55]
[1731157057240,0.68180622,3034.0,3033.1,0.55]
[1731157057852,0.68180622,3033.8,3033.1,0.55]
[1731157058357,0.68180622,3033.9,3033.1,0.55]
[1731157058646,0.68180622,3034.0,3033.1,0.55]
[1731157059052,0.68180622,3033.9,3033.1,0.55]
[1731157060143,0.68180622,3034.0,3033.1,0.55]
[1731157060527,0.68180622,3034.0,3033.3,0.55]
[1731157060726,4.02270934,3034.1,3033.5,0.55]
[1731157060727,0.68180622,3034.1,3033.5,0.55]
[1731157060929,4.02270934,3034.2,3033.5,0.61592161]
[1731157060930,0.68180622,3034.2,3033.5,0.61592161]
[1731157061238,0.68180622,3034.2,3033.5,0.55]
[1731157062849,0.68180622,3034.3,3033.5,0.55]
[1731157063242,0.68180622,3034.2,3033.5,0.55]
[1731157063433,0.68180622,3034.2,3032.6,0.02]
[1731157063434,0.94105156,3034.2,3032.6,0.02]
[1731157063629,0.68180622,3034.1,3032.8,0.01]
[1731157064178,0.68180622,3034.1,3032.9,0.09083585]
[1731157064563,0.68180622,3034.1,3032.6,0.02]
[1731157064733,0.68180622,3034.1,3032.6,0.57]
[1731157064933,3.68180622,3034.1,3032.8,0.55]
[1731157065373,3.68180622,3034.1,3032.7,0.01]
[1731157065664,3.68180622,3034.1,3032.6,0.56]
[1731157065864,3.68180622,3034.1,3032.9,0.55]
[1731157066177,4.24636293,3034.1,3033.1,0.55]
[1731157066666,4.24636293,3034.1,3033.2,0.06592944]
[1731157066835,1.24636293,3034.1,3033.1,0.55]
[1731157067877,0.68180622,3034.0,3033.1,0.55]
[1731157068077,0.68180622,3033.8,3032.2,0.02]
[1731157068274,0.93276778,3033.8,3032.2,0.02]
[1731157068577,0.68180622,3033.7,3032.2,0.02]
[1731157068978,0.68180622,3033.8,3032.6,0.01]
[1731157069140,0.68180622,3033.9,3032.6,0.01]
[1731157069343,0.68180622,3033.9,3032.6,0.56]
[1731157069544,0.68180622,3034.1,3032.6,0.63592801]
[1731157069757,0.68180622,3034.1,3032.8,0.55]
[1731157070179,0.68180622,3034.1,3032.6,0.57]
[1731157070573,0.68180622,3034.1,3032.8,0.55]
[1731157070813,0.68180622,3034.0,3033.0,0.55]
[1731157071692,0.68180622,3033.9,3033.0,0.55]
[1731157071980,0.68180622,3034.0,3033.0,0.55]
[1731157072179,0.68180622,3033.9,3033.0,0.55]
[1731157072546,1.28862422,3034.0,3033.0,0.55]
[1731157072746,0.68180622,3033.9,3033.0,0.55]
[1731157074605,1.28862422,3034.0,3033.0,0.55]
[1731157074776,0.68180622,3033.9,3033.0,0.55]
[1731157074975,1.28862422,3034.0,3033.0,0.55]
[1731157075374,0.68180622,3033.9,3033.0,0.55]
[1731157077477,1.28862422,3034.0,3033.0,0.55]
[1731157077676,0.68180622,3034.0,3033.0,0.55]
[1731157078068,0.68180622,3033.9,3033.0,0.55]
[1731157078771,0.68180622,3034.0,3033.0,0.55]
[1731157080284,0.68180622,3033.9,3033.0,0.55]
[1731157083779,0.68180622,3033.9,3031.2,0.5548]
[1731157083780,0.8051,3032.6,3031.2,0.5548]
[1731157084076,0.68615572,3032.1,3031.3,0.08518271]
[1731157084277,0.68615572,3032.2,3031.2,0.5548]
[1731157084506,0.68615572,3032.4,3031.4,0.5548]
[1731157084691,0.56666199,3032.3,3031.4,0.5548]
[1731157084896,0.68615572,3032.4,3031.4,0.5548]
[1731157085097,0.56667477,3032.3,3031.4,0.5548]
[1731157085269,0.56632716,3032.2,3030.8,0.5548]
[1731157085470,0.68615572,3032.3,3030.8,0.5548]
[1731157085696,2.27351175,3032.2,3030.8,0.5548]
[1731157085871,0.56632684,3032.1,3030.8,0.5548]
[1731157086079,0.17153893,3032.2,3030.8,0.5548]
[1731157086280,0.68615572,3032.3,3030.8,0.5548]
[1731157086495,0.5659179,3032.2,3030.8,0.5648]
[1731157086807,0.68615572,3032.3,3031.0,0.5548]
[1731157086981,0.56597942,3032.2,3031.0,0.5548]
[1731157087186,1.02923359,3032.4,3031.0,0.5548]
[1731157087187,0.68615572,3032.4,3031.1,0.08533626]
[1731157087395,1.03720528,3032.3,3031.2,0.06597182]
[1731157087582,0.47153893,3032.3,3031.3,0.5548]
[1731157088306,1.3458403,3032.6,3031.3,0.5548]
[1731157088605,0.56546694,3032.5,3031.3,0.5548]
[1731157089014,0.56546694,3032.5,3031.4,0.55]
[1731157089170,3.68615572,3032.8,3031.5,0.5548]
[1731157089370,0.56532765,3032.7,3031.5,0.5548]
[1731157089578,0.68615572,3032.8,3031.5,0.5548]
[1731157089887,0.44912557,3032.7,3031.6,0.55]
[1731157090205,0.44912557,3032.7,3031.7,0.5548]
[1731157090668,0.64622059,3033.0,3031.7,0.5548]
[1731157091311,0.68615572,3033.1,3031.7,0.5548]
[1731157091519,5.09936453,3033.1,3031.7,0.5548]
[1731157091806,3.68615572,3033.2,3031.7,0.5548]
[1731157092124,0.56528242,3033.1,3031.7,0.5548]
[1731157092282,0.42514381,3033.0,3031.7,0.5548]
[1731157092709,0.68615572,3033.2,3031.7,0.5048]
[1731157092870,2.09919987,3033.2,3031.7,0.5048]
[1731157093076,0.56521766,3033.1,3031.7,0.5048]
[1731157093274,1.46125572,3033.3,3031.7,0.5048]
[1731157093523,5.09919197,3033.2,3031.7,0.5048]
[1731157093853,4.25556706,3033.1,3031.7,0.5048]
[1731157094157,1.33721301,3033.1,3031.7,0.5048]
[1731157098836,0.8054,3033.0,3031.7,0.5048]
[1731157100942,5.40315909,3032.9,3031.7,0.5048]
[1731157101282,1.71696476,3032.8,3031.7,0.5048]
[1731157101485,1.11009051,3032.7,3031.7,0.5048]
[1731157101786,0.24031205,3032.7,3031.7,0.5048]
[1731157102076,4.67488352,3032.6,3031.7,0.5048]
[1731157102276,0.30490461,3032.5,3031.7,0.5048]
[1731157102977,0.8054,3032.6,3031.7,0.5048]
[1731157103183,0.40457121,3032.5,3031.7,0.5048]
[1731157103409,3.8054,3032.6,3030.6,0.55]
[1731157103685,0.92646777,3032.7,3030.7,0.58209933]
[1731157103884,0.56443981,3032.6,3031.0,0.01]
[1731157104087,0.24031205,3032.7,3031.1,0.5048]
[1731157104447,0.24031205,3032.7,3031.2,0.57076506]
[1731157104714,0.24031205,3032.7,3031.3,0.55]
[1731157104978,0.8054,3032.9,3031.4,0.5048]
[1731157105279,0.30500795,3032.8,3031.4,0.5048]
[1731157105452,0.8054,3032.9,3031.4,0.5048]
[1731157105654,0.30509458,3032.8,3031.4,0.5048]
[1731157105989,0.8054,3032.9,3031.4,0.5048]
[1731157106173,0.30508912,3032.8,3031.4,0.5048]
[1731157106348,0.6502092,3032.8,3031.4,0.5048]
[1731157108358,0.30530162,3032.7,3031.4,0.5048]
[1731157108595,0.6502092,3032.8,3031.4,0.5048]
[1731157108903,0.30532488,3032.7,3031.4,0.5048]
[1731157109108,0.6502092,3032.8,3031.4,0.5048]
[1731157109287,0.30551871,3032.7,3031.4,0.5048]
[1731157109623,0.6502092,3032.8,3031.4,0.5048]
[1731157109624,0.30551871,3032.6,3031.4,0.5048]
[1731157109827,0.6502092,3032.8,3031.4,0.5048]
[1731157109984,0.305608,3032.7,3031.4,0.5048]
[1731157110320,0.305608,3032.6,3031.4,0.5048]
[1731157110621,0.6502092,3032.8,3031.4,0.5048]
[1731157110806,0.30564583,3032.7,3031.4,0.5048]
[1731157111009,0.6502092,3032.8,3031.4,0.5048]
[1731157111010,0.30564583,3032.6,3031.4,0.5048]
[1731157111317,0.6502092,3032.8,3031.4,0.5048]
[1731157111521,0.30566742,3032.7,3031.4,0.5048]
[1731157111686,0.30566742,3032.6,3031.4,0.5048]
[1731157111886,0.30566742,3032.5,3031.4,0.5048]
[1731157112123,0.30566742,3032.4,3031.4,0.5048]
[1731157112423,0.30566742,3032.3,3031.4,0.5048]
[1731157112728,0.30566742,3032.2,3031.4,0.5048]
[1731157112915,0.68615572,3032.7,3031.4,0.5048]
[1731157113228,3.84265242,3032.6,3031.4,0.5048]
[1731157113524,0.30609257,3032.5,3031.4,0.5048]
[1731157113822,0.30609257,3032.4,3031.4,0.5048]
[1731157114025,0.30609257,3032.3,3031.4,0.5048]
[1731157114202,0.30609257,3032.2,3031.4,0.5048]
[1731157114382,0.53655985,3032.6,3031.6,0.5048]
[1731157114689,0.30648245,3032.5,3031.6,0.5048]
[1731157115031,0.30648245,3032.4,3031.6,0.5048]
[1731157115320,0.30648245,3032.3,3031.6,0.5048]
[1731157115532,1.33636492,3032.8,3031.6,0.5048]
[1731157115820,4.32322938,3032.7,3031.6,0.5048]
[1731157116021,0.30648107,3032.6,3031.6,0.5048]
[1731157116221,0.45192283,3032.7,3031.6,0.5048]
[1731157116222,0.30648107,3032.5,3031.6,0.5048]
[1731157116531,0.30648107,3032.4,3031.6,0.5048]
[1731157116816,0.45192283,3032.7,3031.6,0.5048]
[1731157116817,0.30647632,3032.3,3031.6,0.5048]
[1731157117025,0.45192283,3032.7,3031.6,0.5048]
[1731157117199,0.48530495,3032.6,3031.6,0.5048]
[1731157117387,0.30647617,3032.5,3031.6,0.5048]
[1731157117628,0.30647617,3032.4,3031.6,0.5048]
[1731157117787,0.17882878,3032.6,3031.6,0.5048]
[1731157117987,0.30649621,3032.5,3031.6,0.5048]
[1731157118188,0.30649621,3032.4,3031.6,0.5048]
[1731157118501,0.30649621,3032.3,3031.6,0.5048]
[1731157118689,0.30649621,3032.2,3031.6,0.5048]
[1731157118889,0.17882878,3032.6,3031.6,0.5048]
[1731157119127,0.30647729,3032.5,3031.6,0.5048]
[1731157119289,0.17882878,3032.6,3031.6,0.5048]
[1731157119290,0.30647729,3032.4,3031.6,0.5048]
[1731157119489,0.30647729,3032.3,3031.6,0.5048]
[1731157119738,0.30647729,3032.2,3031.6,0.5048]
[1731157119934,0.17882878,3032.6,3031.6,0.5048]
[1731157120232,0.30646625,3032.5,3031.6,0.5048]
[1731157120419,0.30646625,3032.4,3031.6,0.5048]
[1731157120620,0.30646625,3032.3,3031.6,0.5048]
[1731157120805,0.30646625,3032.2,3031.6,0.5048]
[1731157120995,0.17882878,3032.6,3031.6,0.5048]
[1731157121190,0.30647864,3032.5,3031.6,0.5048]
[1731157121390,0.86495738,3032.4,3031.6,0.5048]
[1731157121618,0.30647864,3032.3,3031.6,0.5048]
[1731157121829,0.30647864,3032.2,3031.6,0.5048]
[1731157122011,0.8649845,3032.6,3031.6,0.5048]
[1731157122215,0.87194334,3032.5,3031.6,0.5048]
[1731157122416,0.48018353,3032.4,3031.6,0.5048]
[1731157122616,0.30649075,3032.3,3031.6,0.5048]
[1731157122926,0.30649075,3032.2,3031.6,0.5048]
[1731157123091,0.17369278,3032.4,3031.6,0.5048]
[1731157123291,0.30653184,3032.3,3031.6,0.5048]
[1731157123568,0.30653184,3032.2,3031.6,0.5048]
[1731157123767,0.68615572,3032.5,3031.6,0.5048]
[1731157123940,0.30657496,3032.4,3031.6,0.5048]
[1731157124133,0.68615572,3032.8,3031.6,0.5048]
[1731157124329,2.57899323,3032.7,3031.6,0.5048]
[1731157124540,1.72182639,3032.6,3031.6,0.5048]
[1731157124861,0.30658635,3032.5,3031.6,0.5048]
[1731157125037,0.30658635,3032.4,3031.6,0.5048]
[1731157125362,0.85769465,3032.7,3031.6,0.5048]
[1731157125539,2.40853471,3032.6,3031.6,0.5048]
[1731157125739,0.3066539,3032.5,3031.6,0.5048]
[1731157125946,0.3066539,3032.4,3031.8,0.5048]
[1731157126142,0.85769465,3032.7,3031.8,0.5048]
[1731157126343,1.72278366,3032.6,3031.8,0.5048]
[1731157126546,0.3066641,3032.5,3031.8,0.5048]
[1731157126743,0.3066641,3032.4,3031.8,0.5048]
[1731157126954,0.68615572,3032.6,3031.9,0.08539001]
[1731157127166,1.41666731,3032.5,3032.0,0.5048]
[1731157127376,0.30664356,3032.4,3032.0,0.5048]
[1731157127553,0.68615572,3032.5,3032.0,0.5048]
[1731157127554,0.30673308,3032.3,3032.0,0.5048]
[1731157127754,0.68615572,3032.6,3032.0,0.5048]
[1731157127973,1.72381282,3032.5,3032.0,0.5048]
[1731157128286,1.72489697,3032.4,3032.0,0.5048]
[1731157128497,3.68615572,3032.5,3032.0,0.5048]
[1731157128655,0.87408339,3032.4,3032.0,0.5048]
[1731157128849,0.68615572,3032.5,3032.0,0.5048]
[1731157129054,0.87409022,3032.4,3032.0,0.5048]
[1731157129360,0.68615572,3032.5,3032.0,0.5048]
[1731157129361,2.10581963,3032.3,3032.0,0.5048]
[1731157129565,0.56786698,3032.2,3032.0,0.5048]
[1731157129787,0.68615572,3032.3,3032.0,0.5048]
[1731157130163,0.56788956,3032.2,3032.0,0.5048]
[1731157130499,0.68615572,3032.3,3032.0,0.5048]
[1731157130697,0.56789728,3032.2,3032.0,0.5048]
[1731157130863,0.68615572,3032.3,3032.0,0.5048]
[1731157131200,0.56789328,3032.2,3032.0,0.5048]
[1731157131506,0.68615572,3032.3,3032.0,0.5048]
[1731157131859,0.68615572,3032.4,3032.0,0.5048]
[1731157132103,1.41904951,3032.3,3032.0,0.5048]
[1731157132398,0.68615572,3032.3,3032.0,0.5048]
[1731157132593,0.68615572,3032.4,3032.0,0.5048]
[1731157132801,1.41906055,3032.3,3032.0,0.5048]
[1731157133108,0.68615572,3032.4,3032.0,0.5048]
[1731157133399,0.68615572,3032.5,3032.0,0.5048]
[1731157133603,2.10533051,3032.4,3032.0,0.5048]
[1731157133765,0.68615572,3032.5,3032.0,0.5048]
[1731157133963,1.41921215,3032.4,3032.0,0.5048]
[1731157134291,0.68615572,3032.6,3032.0,0.5048]
[1731157134831,0.68615572,3032.7,3032.0,0.5048]
[1731157135112,0.68615572,3033.1,3032.4,0.5048]
[1731157135310,0.68615572,3033.1,3032.1,0.70078896]
[1731157135311,0.56773241,3033.0,3032.6,0.5048]
[1731157135603,1.02923359,3033.3,3032.1,0.64483601]
[1731157135604,0.68615572,3033.3,3032.7,0.65400447]
[1731157135908,0.68615572,3033.5,3032.8,0.5048]
[1731157136102,1.02923359,3033.6,3032.4,0.02]
[1731157136103,0.68615572,3033.6,3032.9,0.57073395]
[1731157136616,0.68615572,3033.8,3032.9,0.5048]
[1731157136784,1.41862078,3033.7,3032.9,0.5048]
[1731157136981,0.68615572,3033.7,3032.9,0.5048]
[1731157137184,1.02923359,3033.9,3032.9,0.5048]
[1731157137185,0.68615572,3033.9,3033.0,0.55]
[1731157137400,0.68615572,3034.0,3033.2,0.5048]
[1731157137708,0.68615572,3034.1,3033.4,0.5048]
[1731157138006,0.68615572,3034.1,3033.1,0.63320426]
[1731157138007,0.56715995,3034.0,3033.5,0.58797613]
[1731157138216,0.17153893,3034.1,3033.5,0.58797613]
[1731157138418,0.68615572,3034.3,3033.5,0.5048]
[1731157138717,0.56680792,3034.2,3033.6,0.08310319]
[1731157139015,0.68615572,3034.4,3033.5,0.5048]
[1731157139225,0.68615572,3034.5,3033.5,0.5048]
[1731157139515,0.65710989,3034.2,3033.5,0.5048]
[1731157139715,2.57379244,3034.4,3033.5,0.5048]
[1731157139716,0.47153893,3034.4,3033.5,0.5048]
[1731157139873,0.68615572,3034.6,3033.5,0.5048]
[1731157140074,0.56645324,3034.5,3033.5,0.5048]
[1731157140309,0.68615572,3034.6,3033.5,0.5048]
[1731157140479,0.56645818,3034.5,3033.5,0.5048]
[1731157140809,2.18381145,3034.9,3033.8,0.5048]
[1731157140810,0.68615572,3034.9,3033.8,0.5048]
[1731157140971,0.73806464,3034.8,3033.8,0.5048]
[1731157141172,0.17153893,3034.8,3033.9,0.06591079]
[1731157141519,0.68615572,3034.9,3033.8,0.5048]
[1731157141815,0.68615572,3035.1,3034.1,0.55]
[1731157142030,0.68615572,3035.2,3034.2,0.57070407]
[1731157142330,0.17153893,3035.1,3034.3,0.5048]
[1731157142534,1.49765572,3035.6,3034.3,0.5048]
[1731157142688,0.56547269,3035.5,3034.4,0.58721314]
[1731157143030,1.49765572,3035.6,3034.4,0.5048]
[1731157143197,0.8115,3035.6,3034.4,0.5048]
[1731157143400,0.5654241,3035.5,3034.4,0.5048]
[1731157143599,0.8115,3035.6,3034.4,0.5048]
[1731157145688,0.6617235,3035.7,3034.4,0.5048]
[1731157146925,0.8317,3035.9,3034.6,0.5048]
[1731157147387,1.49729499,3035.9,3034.6,0.5048]
[1731157147592,0.66559499,3035.9,3034.6,0.5048]
[1731157147902,0.8317,3036.2,3034.8,0.5048]
[1731157150939,0.64983993,3036.1,3034.8,0.5048]
[1731157151161,0.8317,3036.0,3034.8,0.5048]
[1731157151319,0.8317,3035.8,3034.8,0.5048]
[1731157151708,0.8317,3035.8,3034.5,0.5048]
[1731157151941,0.8417,3035.8,3034.5,0.5048]
[1731157153835,0.64470233,3035.6,3034.5,0.5048]
[1731157154210,0.8317,3035.5,3034.5,0.5048]
[1731157156550,0.55,3035.4,3034.2,0.5048]
[1731157156751,0.8317,3035.3,3034.2,0.5048]
[1731157157214,0.8317,3035.2,3034.2,0.5048]
[1731157157429,0.38317,3035.1,3034.2,0.5048]
[1731157159031,0.8317,3035.2,3034.2,0.5048]
[1731157161467,0.30495731,3035.1,3034.2,0.5048]
[1731157161668,0.8317,3035.2,3034.2,0.5048]
[1731157161863,0.30494923,3035.1,3034.2,0.5048]
[1731157162068,1.002104,3035.2,3034.2,0.5048]
[1731157162270,0.6604044,3035.0,3034.2,0.5048]
[1731157162465,0.8317,3034.9,3033.2,0.55]
[1731157162850,0.8317,3034.9,3033.3,0.58779257]
[1731157163373,0.30548076,3034.8,3033.3,0.58779257]
[1731157163588,0.30547671,3034.7,3033.3,0.58779257]
[1731157163866,1.13716564,3034.6,3033.3,0.58779257]
[1731157164087,0.8317,3034.6,3033.3,0.58779257]
[1731157164240,0.8317,3034.6,3033.3,0.5048]
[1731157164435,0.30572266,3034.5,3033.3,0.5048]
[1731157164771,0.8317,3034.6,3033.3,0.5048]
[1731157164995,0.30579783,3034.5,3033.3,0.5048]
[1731157165195,0.30579783,3034.4,3033.3,0.5048]
[1731157165491,0.30579783,3034.3,3033.3,0.5048]
[1731157165712,0.8317,3034.6,3033.3,0.5048]
[1731157165859,0.30594563,3034.5,3033.3,0.5048]
[1731157166058,0.30594563,3034.4,3033.3,0.5048]
[1731157166273,0.30594563,3034.3,3033.3,0.5048]
[1731157166567,0.8317,3034.6,3033.3,0.5048]
[1731157166770,0.30590062,3034.5,3033.3,0.5048]
[1731157166950,0.30590062,3034.4,3033.3,0.5048]
[1731157167156,0.30590062,3034.3,3033.3,0.5048]
[1731157167380,0.64554821,3034.5,3033.3,0.5048]
[1731157167577,0.30591299,3034.4,3033.3,0.5048]
[1731157167776,0.30591299,3034.3,3033.3,0.5048]
[1731157167983,0.30591299,3034.4,3033.3,0.5048]
[1731157168192,0.30593368,3034.3,3033.3,0.5048]
[1731157168487,0.64554821,3034.5,3033.3,0.5048]
[1731157168695,0.30590012,3034.4,3033.3,0.5048]
[1731157168900,0.64554821,3034.5,3033.3,0.5048]
[1731157168901,0.30590012,3034.3,3033.3,0.5048]
[1731157169061,0.64554821,3034.5,3033.3,0.5048]
[1731157169257,0.30589297,3034.4,3033.3,0.5048]
[1731157169496,0.64554821,3034.5,3033.3,0.5048]
[1731157175096,0.53272095,3034.4,3033.3,0.5048]
[1731157179906,1.28292095,3034.4,3033.3,0.5048]
[1731157185932,1.28292095,3034.4,3033.3,0.5048]